Workbook

Sheet Лист1
A1: Школа | F1: Утвердил: | G1: должность | H1: директор
A2: Типовое примерное меню приготавливаемых блюд | G2: фамилия | H2: Сидоренко Т.В.
A3: Возрастная категория | E3: 7-11 лет | G3: дата | H3: 15 | I3: 9 | J3: 2023
H4: день | I4: месяц | J4: год
A5: Неделя | B5: День недели | C5: Прием пищи | D5: Раздел меню | E5: Блюда | F5: Вес блюда, г | G5: Белки | H5: Жиры | I5: Углеводы | J5: Калорийность | K5: № рецептуры | L5: Цена
A6: 1 | B6: 1 | C6: Завтрак | D6: гор.блюдо | E6: каша из смеси круп с изюмом | F6: 205 | G6: 10.12 | H6: 11.82 | I6: 41.01 | J6: 311 | K6: 177
E7: бутерброд с сыром | F7: 50 | G7: 5.8 | H7: 8.3 | I7: 14.83 | J7: 157 | K7: 3
D8: гор.напиток | E8: молоко кипяченое | F8: 200 | G8: 5.8 | H8: 5 | I8: 9.6 | J8: 107 | K8: 385
D9: фрукты | E9: Яблоко | F9: 120 | G9: 0.48 | H9: 0.48 | I9: 11.76 | J9: 56.4 | K9: 338
D13: итого | F13: =SUM(F6:F12) -> 575 | G13: =SUM(G6:G12) -> 22.2 | H13: =SUM(H6:H12) -> 25.6 | I13: =SUM(I6:I12) -> 77.2 | J13: =SUM(J6:J12) -> 631.4 | L13: =SUM(L6:L12) -> 0
A14: =A6 -> 1 | B14: =B6 -> 1 | C14: Обед | D14: закуска
D15: 1 блюдо
D16: 2 блюдо
D17: гарнир
D18: напиток
D19: хлеб бел.
D20: хлеб черн.
D23: итого | F23: =SUM(F14:F22) -> 0 | G23: =SUM(G14:G22) -> 0 | H23: =SUM(H14:H22) -> 0 | I23: =SUM(I14:I22) -> 0 | J23: =SUM(J14:J22) -> 0 | L23: =SUM(L14:L22) -> 0
A24: =A6 -> 1 | B24: =B6 -> 1 | C24: Итого за день: | F24: =F13+F23 -> 575 | G24: =G13+G23 -> 22.2 | H24: =H13+H23 -> 25.6 | I24: =I13+I23 -> 77.2 | J24: =J13+J23 -> 631.4 | L24: =L13+L23 -> 0
A25: 1 | B25: 2 | C25: Завтрак | D25: гор.блюдо | E25: Запеканка из творога с молоком сгущеным | F25: 7.5 | G25: 27.69 | H25: 23.14 | I25: 35.56 | J25: 463 | K25: 223
D26: фрукты | E26: яблоко | F26: 120 | G26: 0.48 | H26: 0.48 | I26: 11.76 | J26: 56.4 | K26: 338
D27: гор.напиток | E27: Кофейный напиток с молоком | F27: 200 | G27: 3.17 | H27: 2.68 | I27: 15.95 | J27: 101 | K27: 379
D28: хлеб | E28: хлеб пшеничный | F28: 20 | G28: 3.55 | H28: 1.33 | I28: 18.7 | J28: 100.07 | K28: ПР
D32: итого | F32: =SUM(F25:F31) -> 347.5 | G32: =SUM(G25:G31) -> 34.89 | H32: =SUM(H25:H31) -> 27.63 | I32: =SUM(I25:I31) -> 81.97 | J32: =SUM(J25:J31) -> 720.47 | L32: =SUM(L25:L31) -> 0
A33: =A25 -> 1 | B33: =B25 -> 2 | C33: Обед | D33: закуска
D34: 1 блюдо
D35: 2 блюдо
D36: гарнир
D37: напиток
D38: хлеб бел.
D39: хлеб черн.
D42: итого | F42: =SUM(F33:F41) -> 0 | G42: =SUM(G33:G41) -> 0 | H42: =SUM(H33:H41) -> 0 | I42: =SUM(I33:I41) -> 0 | J42: =SUM(J33:J41) -> 0 | L42: =SUM(L33:L41) -> 0
A43: =A25 -> 1 | B43: =B25 -> 2 | C43: Итого за день: | F43: =F32+F42 -> 347.5 | G43: =G32+G42 -> 34.89 | H43: =H32+H42 -> 27.63 | I43: =I32+I42 -> 81.97 | J43: =J32+J42 -> 720.47 | L43: =L32+L42 -> 0
A44: 1 | B44: 3 | C44: Завтрак | D44: закуска | E44: Икра кабачковая консервиров | F44: 60 | G44: 1.64 | H44: 4.31 | I44: 8.73 | J44: 80.26 | K44: ПР
D45: гор. блюдо | E45: Омлет с сыром | F45: 150 | G45: 17.93 | H45: 29.43 | I45: 2.55 | J45: 347.5 | K45: 211
D46: гор.напиток | E46: какао с молоком | F46: 200 | G46: 4.08 | H46: 3.54 | I46: 17.58 | J46: 119 | K46: 382
E47: бутерброд с маслом | F47: 40 | G47: 2.36 | H47: 7.49 | I47: 14.89 | J47: 136 | K47: 1
E48: печенье | F48: 20 | G48: 1.28 | H48: 1.63 | I48: 20.24 | J48: 74.37 | K48: ПР
D49: хлеб черн. | E49: хлеб ржаной | F49: 30 | G49: 2.1 | H49: 0.3 | I49: 19.68 | J49: 49.35 | K49: ПР
D51: итого | F51: =SUM(F44:F50) -> 500 | G51: =SUM(G44:G50) -> 29.39 | H51: =SUM(H44:H50) -> 46.7 | I51: =SUM(I44:I50) -> 83.67 | J51: =SUM(J44:J50) -> 806.48 | L51: =SUM(L44:L50) -> 0
A52: =A44 -> 1 | B52: =B44 -> 3 | C52: Обед | D52: закуска
D53: 1 блюдо
D54: 2 блюдо
D55: гарнир
D56: напиток
D57: хлеб бел.
D58: хлеб черн.
D61: итого | F61: =SUM(F52:F60) -> 0 | G61: =SUM(G52:G60) -> 0 | H61: =SUM(H52:H60) -> 0 | I61: =SUM(I52:I60) -> 0 | J61: =SUM(J52:J60) -> 0 | L61: =SUM(L52:L60) -> 0
A62: =A44 -> 1 | B62: =B44 -> 3 | C62: Итого за день: | F62: =F51+F61 -> 500 | G62: =G51+G61 -> 29.39 | H62: =H51+H61 -> 46.7 | I62: =I51+I61 -> 83.67 | J62: =J51+J61 -> 806.48 | L62: =L51+L61 -> 0
A63: 1 | B63: 4 | C63: Завтрак | D63: овощи | E63: Огурцы соленые | F63: 60 | G63: 0.48 | H63: 0.06 | I63: 1.02 | J63: 6 | K63: 60
D64: гор. блюдо | E64: Рагу из птицы | F64: 175 | G64: 16.58 | H64: 15.47 | I64: 20.06 | J64: 286.44 | K64: 289
D65: гор.напиток | E65: Чай с лимоном | F65: 200 | G65: 0.13 | H65: 0.02 | I65: 15.2 | J65: 62 | K65: 377
D66: хлеб бел. | E66: хлеб пшеничный | F66: 50 | G66: 4.43 | H66: 1.67 | I66: 25.38 | J66: 125.08 | K66: ПР
D67: хлеб черн. | E67: хлеб ржаной | F67: 30 | G67: 2.1 | H67: 0.3 | I67: 19.68 | J67: 49.35 | K67: ПР
D70: итого | F70: =SUM(F63:F69) -> 515 | G70: =SUM(#REF!) ->  | H70: =SUM(G63:G69) -> 23.72 | I70: =SUM(H63:H69) -> 17.52 | J70: =SUM(I63:I69) -> 81.34 | L70: =SUM(L63:L69) -> 0
A71: =A63 -> 1 | B71: =B63 -> 4 | C71: Обед | D71: закуска
D72: 1 блюдо
D73: 2 блюдо
D74: гарнир
D75: напиток
D76: хлеб бел.
D77: хлеб черн.
D80: итого | F80: =SUM(F71:F79) -> 0 | G80: =SUM(G71:G79) -> 0 | H80: =SUM(H71:H79) -> 0 | I80: =SUM(I71:I79) -> 0 | J80: =SUM(J71:J79) -> 0 | L80: =SUM(L71:L79) -> 0
A81: =A63 -> 1 | B81: =B63 -> 4 | C81: Итого за день: | F81: =F70+F80 -> 515 | G81: =G70+G80 ->  | H81: =H70+H80 -> 23.72 | I81: =I70+I80 -> 17.52 | J81: =J70+J80 -> 81.34 | L81: =L70+L80 -> 0
A82: 1 | B82: 5 | C82: Завтрак | D82: гор.блюдо | E82: Биточек, запеченый из рыбы с творогом | F82: 100 | G82: 10.12 | H82: 6.59 | I82: 32.14 | J82: 156 | K82: 262/2011
E83: Салат из свеклы с сыром и чесноком | F83: 60 | G83: 2.8 | H83: 5.63 | I83: 4.31 | J83: 79.12 | K83: 50
D84: гор.напиток | E84: сок фруктовый | F84: 200 | G84: 1 | H84: 0 | I84: 20.2 | J84: 85 | K84: 389
D85: хлеб бел. | E85: хлеб пшеничный | F85: 50 | G85: 4.43 | H85: 1.68 | I85: 25.38 | J85: 125.08 | K85: ПР
D86: хлеб черн. | E86: хлеб ржаной | F86: 20 | G86: 1.4 | H86: 0.2 | I86: 11.12 | J86: 32.9 | K86: ПР
D87: гарнир | E87: каша вязкая пшеничная | F87: 150 | G87: 4 | H87: 4.25 | I87: 24.58 | J87: 152 | K87: 303
D89: итого | F89: =SUM(F82:F88) -> 580 | G89: =SUM(G82:G88) -> 23.75 | H89: =SUM(H82:H88) -> 18.35 | I89: =SUM(I82:I88) -> 117.73 | J89: =SUM(J82:J88) -> 630.1 | L89: =SUM(L82:L88) -> 0
A90: =A82 -> 1 | B90: =B82 -> 5 | C90: Обед | D90: закуска
D91: 1 блюдо
D92: 2 блюдо
D93: гарнир
D94: напиток
D95: хлеб бел.
D96: хлеб черн.
D99: итого | F99: =SUM(F90:F98) -> 0 | G99: =SUM(G90:G98) -> 0 | H99: =SUM(H90:H98) -> 0 | I99: =SUM(I90:I98) -> 0 | J99: =SUM(J90:J98) -> 0 | L99: =SUM(L90:L98) -> 0
A100: =A82 -> 1 | B100: =B82 -> 5 | C100: Итого за день: | F100: =F89+F99 -> 580 | G100: =G89+G99 -> 23.75 | H100: =H89+H99 -> 18.35 | I100: =I89+I99 -> 117.73 | J100: =J89+J99 -> 630.1 | L100: =L89+L99 -> 0
A101: 2 | B101: 1 | C101: Завтрак | D101: гор.блюдо | E101: Каша жидкая молочная из манной крупы с маслом | F101: 210 | G101: 6.03 | H101: 3.46 | I101: 32.38 | J101: 251 | K101: 181
E102: Бутерброд с сыром | F102: 50 | G102: 5.8 | H102: 8.3 | I102: 14.83 | J102: 157 | K102: 3
D103: гор.напиток | E103: Чай с сахаром | F103: 200 | G103: 0.07 | H103: 0.02 | I103: 15 | J103: 60 | K103: 376
D104: хлеб черн. | E104: хлеб ржаной | F104: 20 | G104: 1.4 | H104: 0.2 | I104: 11.12 | J104: 32.9 | K104: ПР
D105: фрукты | E105: Яблоко | F105: 120 | G105: 0.48 | H105: 0.48 | I105: 11.76 | J105: 56.4 | K105: 338
D108: итого | F108: =SUM(F101:F107) -> 600 | G108: =SUM(G101:G105) -> 13.78 | H108: =SUM(H101:H105) -> 12.46 | I108: =SUM(I101:I105) -> 85.09 | J108: =SUM(J101:J107) -> 557.3 | L108: =SUM(L101:L107) -> 0
A109: =A101 -> 2 | B109: =B101 -> 1 | C109: Обед | D109: закуска
D110: 1 блюдо
D111: 2 блюдо
D112: гарнир
D113: напиток
D114: хлеб бел.
D115: хлеб черн.
D118: итого | F118: =SUM(F109:F117) -> 0 | G118: =SUM(G109:G117) -> 0 | H118: =SUM(H109:H117) -> 0 | I118: =SUM(I109:I117) -> 0 | J118: =SUM(J109:J117) -> 0 | L118: =SUM(L109:L117) -> 0
A119: =A101 -> 2 | B119: =B101 -> 1 | C119: Итого за день: | F119: =F108+F118 -> 600 | G119: =G108+G118 -> 13.78 | H119: =H108+H118 -> 12.46 | I119: =I108+I118 -> 85.09 | J119: =J108+J118 -> 557.3
A120: 2 | B120: 2 | C120: Завтрак | D120: гор.блюдо | E120: Пудинг из творога (запеч) со сгущ. молоком | F120: 150/20 | G120: 24.18 | H120: 21.19 | I120: 46.91 | J120: 475 | K120: 222
D121: гор. напиток | E121: Чай с лимоном | F121: 200 | G121: 0.13 | H121: 0.02 | I121: 15.2 | J121: 62 | K121: 377
D122: хлеб бел. | E122: хлеб пшеничный | F122: 20 | G122: 1.58 | H122: 0.2 | I122: 9.78 | J122: 46.76 | K122: ПР
D123: фрукты | E123: яблоко | F123: 120 | G123: 0.48 | H123: 0.48 | I123: 11.76 | J123: 56.4 | K123: 338
D127: итого | F127: =SUM(F120:F126) -> 340 | G127: =SUM(G120:G126) -> 26.37 | H127: =SUM(H120:H126) -> 21.89 | I127: =SUM(I120:I126) -> 83.65 | J127: =SUM(J120:J126) -> 640.16
A128: =A120 -> 2 | B128: =B120 -> 2 | C128: Обед | D128: закуска
D129: 1 блюдо
D130: 2 блюдо
D131: гарнир
D132: напиток
D133: хлеб бел.
D134: хлеб черн.
D137: итого | F137: =SUM(F128:F136) -> 0 | G137: =SUM(G128:G136) -> 0 | H137: =SUM(H128:H136) -> 0 | I137: =SUM(I128:I136) -> 0 | J137: =SUM(J128:J136) -> 0 | L137: =SUM(L128:L136) -> 0
A138: =A120 -> 2 | B138: =B120 -> 2 | C138: Итого за день: | F138: =F127+F137 -> 340 | G138: =G127+G137 -> 26.37 | H138: =H127+H137 -> 21.89 | I138: =I127+I137 -> 83.65 | J138: =J127+J137 -> 640.16 | L138: =L127+L137 -> 0
A139: 2 | B139: 3 | C139: Завтрак | D139: гор.блюдо | E139: Драчена | F139: 150 | G139: 17.13 | H139: 22.74 | I139: 9.12 | J139: 309 | K139: 216
A140: 2 | B140: 3 | C140: завтрак | D140: закуска | E140: Икра кабачковая конс. | F140: 60 | G140: 1.64 | H140: 4.31 | I140: 8.73 | J140: 80.26 | K140: ПР
D141: гор.блюдо | E141: Драчена | F141: 200 | G141: 17.13 | H141: 22.74 | I141: 9.12 | J141: 309 | K141: 216
E142: Бутерброд с сыром | F142: 20 | G142: 5.8 | H142: 8.3 | I142: 14.83 | J142: 157 | K142: 3
D143: гор. напиток | E143: Кофейный напиток с молоком | F143: 100 | G143: 3.17 | H143: 2.68 | I143: 15.95 | J143: 101 | K143: 379
D144: фрукты | E144: яблоко | F144: 50 | G144: 0.48 | H144: 0.48 | I144: 11.76 | J144: 56.4 | K144: 338
D145: хлеб черн. | E145: хлеб ржаной | F145: 20 | G145: 1.4 | H145: 0.2 | I145: 11.12 | J145: 32.9 | K145: ПР
D146: итого | F146: =SUM(F139:F145) -> 600 | G146: =SUM(G139:G145) -> 46.75 | H146: =SUM(H139:H145) -> 61.45 | I146: =SUM(I139:I145) -> 80.63 | J146: =SUM(J139:J145) -> 1045.56 | L146: =SUM(L139:L145) -> 0
A147: =A139 -> 2 | B147: =B139 -> 3 | C147: Обед | D147: закуска
D148: 1 блюдо
D149: 2 блюдо
D150: гарнир
D151: напиток
D152: хлеб бел.
D153: хлеб черн.
D156: итого | F156: =SUM(F147:F155) -> 0 | G156: =SUM(G147:G155) -> 0 | H156: =SUM(H147:H155) -> 0 | I156: =SUM(I147:I155) -> 0 | J156: =SUM(J147:J155) -> 0 | L156: =SUM(L147:L155) -> 0
A157: =A139 -> 2 | B157: =B139 -> 3 | C157: Итого за день: | F157: =F146+F156 -> 600 | G157: =G146+G156 -> 46.75 | H157: =H146+H156 -> 61.45 | I157: =I146+I156 -> 80.63 | J157: =J146+J156 -> 1045.56 | L157: =L146+L156 -> 0
A158: 2 | B158: 4 | C158: Завтрак | D158: гор.блюдо | E158: Суп молочный с крупой пшенной | F158: 250 | G158: 3.71 | H158: 4.46 | I158: 17.68 | J158: 126.28 | K158: 121
E159: Бутерброд с сыром | F159: 50 | G159: 5.8 | H159: 8.3 | I159: 14.83 | J159: 157 | K159: 3
D160: гор.напиток | E160: какао с молоком | F160: 200 | G160: 4.08 | H160: 3.54 | I160: 17.58 | J160: 119 | K160: 382
D161: фрукты | E161: яблоко | F161: 120 | G161: 0.48 | H161: 0.48 | I161: 56.4 | J161: 56.4 | K161: 338
D162: хлеб черн. | E162: хлеб ржаной | F162: 20 | G162: 2.1 | H162: 0.3 | I162: 19.68 | J162: 49.35 | K162: ПР
D165: итого | F165: =SUM(F158:F164) -> 640 | G165: =SUM(G158:G164) -> 16.17 | H165: =SUM(H158:H164) -> 17.08 | I165: =SUM(I158:I164) -> 126.17 | J165: =SUM(J158:J164) -> 508.03 | L165: =SUM(L158:L164) -> 0
A166: =A158 -> 2 | B166: =B158 -> 4 | C166: Обед | D166: закуска
D167: 1 блюдо
D168: 2 блюдо
D169: гарнир
D170: напиток
D171: хлеб бел.
D172: хлеб черн.
D175: итого | F175: =SUM(F166:F174) -> 0 | G175: =SUM(G166:G174) -> 0 | H175: =SUM(H166:H174) -> 0 | I175: =SUM(I166:I174) -> 0 | J175: =SUM(J166:J174) -> 0 | L175: =SUM(L166:L174) -> 0
A176: =A158 -> 2 | B176: =B158 -> 4 | C176: Итого за день: | F176: =F165+F175 -> 640 | G176: =G165+G175 -> 16.17 | H176: =H165+H175 -> 17.08 | I176: =I165+I175 -> 126.17 | J176: =J165+J175 -> 508.03 | L176: =L165+L175 -> 0
A177: 2 | B177: 5 | C177: Завтрак | D177: закуска | E177: Икра морковная | F177: 60 | G177: 1.21 | H177: 0.06 | I177: 12.32 | J177: 54.7 | K177: 75
D178: гор.блюдо | E178: Тефтели из говядины (2 вариант) с соусом | F178: 60/50 | G178: 7.46 | H178: 8.29 | I178: 9.44 | J178: 142 | K178: 279/331
D179: гарнир | E179: каша вязкая ячневая | F179: 150 | G179: 3.24 | H179: 4.23 | I179: 20.84 | J179: 134.38 | K179: 303
D180: гор. напиток | E180: чай с сахаром | F180: 180 | G180: 0.06 | H180: 0.02 | I180: 12.61 | J180: 50.42 | K180: 376
D181: хлеб бел. | E181: хлеб пшеничный | F181: 50 | G181: 4.43 | H181: 1.67 | I181: 25.38 | J181: 125.08 | K181: ПР
D182: хлеб черн. | E182: хлеб ржаной | F182: 30 | G182: 2.1 | H182: 0.3 | I182: 19.68 | J182: 49.35 | K182: ПР
D184: итого | F184: =SUM(F177:F183) -> 470 | G184: =SUM(G177:G183) -> 18.5 | H184: =SUM(H177:H183) -> 14.57 | I184: =SUM(I177:I183) -> 100.27 | J184: =SUM(J177:J183) -> 555.93 | L184: =SUM(L177:L183) -> 0
A185: =A177 -> 2 | B185: =B177 -> 5 | C185: Обед | D185: закуска
D186: 1 блюдо
D187: 2 блюдо
D188: гарнир
D189: напиток
D190: хлеб бел.
D191: хлеб черн.
D194: итого | F194: =SUM(F185:F193) -> 0 | G194: =SUM(G185:G193) -> 0 | H194: =SUM(H185:H193) -> 0 | I194: =SUM(I185:I193) -> 0 | J194: =SUM(J185:J193) -> 0 | L194: =SUM(L185:L193) -> 0
A195: =A177 -> 2 | B195: =B177 -> 5 | C195: Итого за день: | F195: =F184+F194 -> 470 | G195: =G184+G194 -> 18.5 | H195: =H184+H194 -> 14.57 | I195: =I184+I194 -> 100.27 | J195: =J184+J194 -> 555.93 | L195: =L184+L194 -> 0
C196: Среднее значение за период: | F196: =(F24+F43+F62+F81+F100+F119+F138+F157+F176+F195)/(IF(F24=0,0,1)+IF(F43=0,0,1)+IF(F62=0,0,1)+IF(F81=0,0,1)+IF(F100=0,0,1)+IF(F119=0,0,1)+IF(F138=0,0,1)+IF(F157=0,0,1)+IF(F176=0,0,1)+IF(F195=0,0,1)) -> 516.75 | G196: =(G24+G43+G62+G81+G100+G119+G138+G157+G176+G195)/(IF(G24=0,0,1)+IF(G43=0,0,1)+IF(G62=0,0,1)+IF(G81=0,0,1)+IF(G100=0,0,1)+IF(G119=0,0,1)+IF(G138=0,0,1)+IF(G157=0,0,1)+IF(G176=0,0,1)+IF(G195=0,0,1)) ->  | H196: =(H24+H43+H62+H81+H100+H119+H138+H157+H176+H195)/(IF(H24=0,0,1)+IF(H43=0,0,1)+IF(H62=0,0,1)+IF(H81=0,0,1)+IF(H100=0,0,1)+IF(H119=0,0,1)+IF(H138=0,0,1)+IF(H157=0,0,1)+IF(H176=0,0,1)+IF(H195=0,0,1)) -> 26.945 | I196: =(I24+I43+I62+I81+I100+I119+I138+I157+I176+I195)/(IF(I24=0,0,1)+IF(I43=0,0,1)+IF(I62=0,0,1)+IF(I81=0,0,1)+IF(I100=0,0,1)+IF(I119=0,0,1)+IF(I138=0,0,1)+IF(I157=0,0,1)+IF(I176=0,0,1)+IF(I195=0,0,1)) -> 85.39 | J196: =(J24+J43+J62+J81+J100+J119+J138+J157+J176+J195)/(IF(J24=0,0,1)+IF(J43=0,0,1)+IF(J62=0,0,1)+IF(J81=0,0,1)+IF(J100=0,0,1)+IF(J119=0,0,1)+IF(J138=0,0,1)+IF(J157=0,0,1)+IF(J176=0,0,1)+IF(J195=0,0,1)) -> 617.677 | L196: =(L24+L43+L62+L81+L100+L119+L138+L157+L176+L195)/(IF(L24=0,0,1)+IF(L43=0,0,1)+IF(L62=0,0,1)+IF(L81=0,0,1)+IF(L100=0,0,1)+IF(L119=0,0,1)+IF(L138=0,0,1)+IF(L157=0,0,1)+IF(L176=0,0,1)+IF(L195=0,0,1)) -> 
